Cogmind - Beta 14 @@@ ROGUE MODE // 2024.11.24 @ 10:38:27 Player: Mallow Result: Destroyed by S-10 Pest with Light Assault Rifle Performance ------------- Evolutions (0) 0 Regions Visited (3) 600 Robots Destroyed (19) 95 Value Destroyed (534) 534 Prototype IDs (0) 0 Alien Tech Used (0) 0 Bonus (-13) -13 TOTAL SCORE: 1216 Bonus ------- Friendly Fire -13 Cogmind --------- Core Integrity 0/250 Matter 252/300 Energy 119/125 System Corruption 0% Temperature Cool (0) Movement Rolling (95) Ox1 Location -10/Subcaves Parts ------- > --- POWER (1) -------- Light Ion Engine > --- PROPULSION (2) --- Wheel > --- UTILITY (2) ------ Small Storage Unit > --- WEAPON (2) ------- Subdweller Laser > --- INVENTORY (8) ---- Subdweller Power Source Makeshift Power Source Subdweller Optics Scrap Shield Fragment (49) Peak State ------------ > --- POWER ------------ Subdweller Power Source > --- PROPULSION ------- Light Treads Light Treads > --- UTILITY ---------- Scrap Shield > --- WEAPON ----------- Barrage Gun Rocket Launcher > --- INVENTORY -------- Subdweller Power Source Small Storage Unit Subdweller Optics Autogun Autogun [Rating: 13] Favorites ----------- Power Light Ion Engine Engine Light Ion Engine Propulsion Light Treads Treads Light Treads Wheel Subdweller Monowheel Utility Scrap Shield Storage Small Storage Unit Processor Visual Processing Unit Protection Scrap Shield Weapon Rocket Launcher Energy Gun Subdweller Laser Ballistic Gun Barrage Gun Launcher Rocket Launcher Build | -11 -10 -10 -10 ------- Run | Yrd Mat Min Sub Slots Evolved . | . . . . Power . | . . . . Propulsion . | . . . . Utility . | . . . . Weapon . | . . . . Parts Attached 22 | 6 4 1 11 Power 4 | 1 . . 3 Engine 4 | 1 . . 3 Core . | . . . . Reactor . | . . . . Propulsion 4 | 2 . . 2 Treads 2 | 2 . . . Leg . | . . . . Wheel 2 | . . . 2 Hover . | . . . . Flight . | . . . . Utility 4 | 1 1 . 2 Device . | . . . . Storage 2 | 1 . . 1 Processor 1 | . 1 . . Hackware . | . . . . Protection 1 | . . . 1 Artifact . | . . . . Weapon 10 | 2 3 1 4 Energy Gun 2 | 1 . . 1 Energy Cannon . | . . . . Ballistic Gun 7 | 1 3 . 3 Ballistic Cannon . | . . . . Launcher 1 | . . 1 . Special Weapon . | . . . . Impact Weapon . | . . . . Slashing Weapon . | . . . . Piercing Weapon . | . . . . Special Melee Weapon . | . . . . Unidentified Prototypes . | . . . . Parts Lost 7 | . . . 7 Power . | . . . . Propulsion 3 | . . . 3 Utility 1 | . . . 1 Weapon 3 | . . . 3 Highest Loss Streak 5 | . . . 5 To Critical Strikes . | . . . . Average Slot Usage (%) 85 | . 98 100 82 Engine 14 | . 14 14 14 Treads 25 | . 28 28 25 Wheel 1 | . . . 2 Storage 2 | . 14 14 . Processor 2 | . 13 14 . Protection 10 | . . . 12 Energy Gun 1 | . 1 . 1 Ballistic Gun 15 | . 26 14 13 Launcher 11 | . . 13 12 Peak Build Rating 13 | 6 10 11 13 Average Rating 11 | 4 9 10 11 On Entrance 6 | . 6 10 11 Naked Turns . | . . . . Heaviest Build 30 | 11 14 15 30 Greatest Support 40 | 40 40 40 40 Greatest Overweight (x) 2 | . . . 2 Average Overweight (x) . | . . . . Largest Inventory Capacity 8 | 8 8 8 8 Average Capacity 5 | 6 8 8 5 Most Carried 7 | 1 4 5 7 Average Carried 4 | . 3 4 4 Final Capacity 8 | 8 8 8 8 Final Carried 5 | 1 4 5 4 Class Distribution -------------------- 100% | Mutant Dominant Class ---------------- Mutant | -10/Materials Mutant | -10/Mines Mutant | -10/Subcaves Resources | -11 -10 -10 -10 ----------- Run | Yrd Mat Min Sub Matter Collected 851 | 190 117 . 544 Remotely . | . . . . Salvage Created 516 | . 117 41 358 Parts 51 | . 7 10 34 Haulers Intercepted . | . . . . Recyclers Shooed 1 | . 1 . . Parts Field Recycled . | . . . . Retrieved Matter . | . . . . Parts Self-Destructed 13 | . . . 13 Prevented . | . . . . Kills | -11 -10 -10 -10 ------- Run | Yrd Mat Min Sub Combat Hostiles Destroyed 16 | . 2 3 11 Guns 10 | . 2 . 8 AOE 6 | . . 3 3 Classes Destroyed 8 | . 2 3 3 Worker 1 | . . 1 . Tunneler 1 | . . 1 . Watcher 1 | . 1 . . Swarmer 5 | . . 3 2 Grunt 3 | . 2 . 1 Sentry 1 | . . . 1 Artisan 2 | . . . 2 Subdweller 7 | . . . 7 Best Kill Streak 4 | . 2 4 2 Combat Bots Only 3 | . 2 3 2 Max Kills in Single Turn 2 | . 1 2 1 Gunslinging . | . . . . Exploded 1 | . . 1 1 Melee . | . . . . Uniques/NPCs Destroyed . | . . . . Combat | -11 -10 -10 -10 -------- Run | Yrd Mat Min Sub Hostile Shots Fired 122 | . 6 7 109 Missed 28 | . . 1 27 Damage Taken 1582 | . 75 105 1402 Core 255 | . . 16 239 Absorbed by Shields . | . . . . Core Remaining (%) 100 | 100 . . . Volleys Fired 87 | . 6 5 76 Largest 2 | . 2 1 2 Hottest 88 | . 46 33 88 Shots Fired 101 | . 12 5 84 Gun 74 | . 12 . 62 Cannon . | . . . . Launcher 27 | . . 5 22 Special . | . . . . Kinetic 58 | . 12 . 46 Thermal 16 | . . . 16 Explosive 27 | . . 5 22 Electromagnetic . | . . . . Robot Hit Streak 9 | . 9 1 9 Robot Miss Streak 5 | . 1 2 5 Penetration Max . | . . . . Secondary Targets . | . . . . Shots Hit Robots 56 | . 10 1 45 Core Hits 31 | . 5 5 21 Critical Kills . | . . . . Critical Parts Destroyed . | . . . . Critical Strikes . | . . . . Melee Attacks . | . . . . Impact . | . . . . Slashing . | . . . . Piercing . | . . . . Sneak Attacks . | . . . . Combat Hostiles . | . . . . Follow-up Attacks . | . . . . Damage Inflicted 1791 | . 156 222 1413 Guns 847 | . 154 . 693 Cannons . | . . . . Explosions 940 | . . 220 720 Melee . | . . . . Ramming 4 | . 2 2 . Kinetic 670 | . 154 . 516 Thermal 177 | . . . 177 Explosive 940 | . . 220 720 Electromagnetic . | . . . . Impact . | . . . . Slashing . | . . . . Piercing . | . . . . Highest Corruption . | . . . . Average Corruption . | . . . . Corruption Purged . | . . . . Corruption Blocked . | . . . . Overload Shots . | . . . . Overflow Damage . | . . . . Projectiles . | . . . . Explosions . | . . . . Melee . | . . . . Knockbacks . | . . . . Impact . | . . . . Kinetic . | . . . . Secondary . | . . . . Self-Inflicted Damage 132 | . . 64 68 Shots 5 | . . 2 3 Rammed 3 | . 2 1 . Targets Rammed 3 | . 2 1 . Kicked . | . . . . Crushed . | . . . . Highest Temperature 24 | . 24 . 14 Average Temperature 8 | . 10 . 6 Received Heat Transfer 297 | . 39 . 258 Siege Activations . | . . . . Robots Corrupted . | . . . . Combat Hostiles . | . . . . Parts Fried . | . . . . Impact Corruptions . | . . . . Robots Melted . | . . . . Combat Hostiles . | . . . . Parts Melted . | . . . . Heat Transferred 225 | . . . 225 Parts Sabotaged . | . . . . Parts Stolen . | . . . . Parts Stripped . | . . . . Power Chain Reactions . | . . . . Alert | -11 -10 -10 -10 ------- Run | Yrd Mat Min Sub Peak Influence 143 | . 78 143 . Initial . | . . . . Average 52 | . 40 97 . Maximum Alert Level . | . . . . Low Security (%) 100 | 100 100 100 . Level 1 . | . . . . Level 2 . | . . . . Level 3 . | . . . . Level 4 . | . . . . Level 5 . | . . . . High Security . | . . . . Max Security . | . . . . Squads Dispatched . | . . . . Investigation . | . . . . Extermination . | . . . . Reinforcement . | . . . . Assault . | . . . . Garrison . | . . . . Intercept . | . . . . Searches Triggered . | . . . . Construction Impeded . | . . . . Haulers Reinforced . | . . . . Active Scanning Responses . | . . . . Cargo Convoy Interrupts . | . . . . Stealth | -11 -10 -10 -10 --------- Run | Yrd Mat Min Sub Distress Signals 1 | . . 1 . Communications Jammed . | . . . . Distress Signals . | . . . . Times Spotted 30 | . 5 3 22 Peak Tracking Total 6 | . 2 3 6 Tactical Retreats 2 | . . . 2 Traps | -11 -10 -10 -10 ------- Run | Yrd Mat Min Sub Traps Triggered 1 | . . . 1 Indirectly . | . . . . Trap Hack Attempts . | . . . . Triggered . | . . . . Disarmed . | . . . . Reprogrammed . | . . . . Reused . | . . . . Traps Extracted . | . . . . Installed . | . . . . Triggered . | . . . . Machines | -11 -10 -10 -10 ---------- Run | Yrd Mat Min Sub Machines Disabled 2 | . . 2 . Max in Single Turn 1 | . . 1 . Machines Repaired . | . . . . Machines Dismantled . | . . . . Machines Sabotaged . | . . . . Overloaded Fab Kills . | . . . . Hacking | -11 -10 -10 -10 --------- Run | Yrd Mat Min Sub Machines Accessed 3 | . 2 . 1 Terminals 2 | . 2 . . Fabricators . | . . . . Repair Stations . | . . . . Recycling Units . | . . . . Scanalyzers . | . . . . Garrison Access . | . . . . Total Hacks 6 | . 3 . 3 Successful 5 | . 2 . 3 Failed 1 | . 1 . . Catastrophic 1 | . 1 . . Database Lockouts . | . . . . Manual 1 | . 1 . . Terminals 3 | . 3 . . Fabricators . | . . . . Repair Stations . | . . . . Recycling Units . | . . . . Scanalyzers . | . . . . Garrison Access . | . . . . Terminal Hacks 5 | . 2 . 3 Record 4 | . 1 . 3 Emergency Access Points 1 | . 1 . . Fabricator Hacks . | . . . . Repair Station Hacks . | . . . . Recycling Unit Hacks . | . . . . Scanalyzer . | . . . . Garrison Access Hacks . | . . . . Unauthorized Hacks . | . . . . Terminals . | . . . . Fabricators . | . . . . Repair Stations . | . . . . Recycling Units . | . . . . Scanalyzers . | . . . . Garrison Access . | . . . . Data Cores Recovered . | . . . . Used . | . . . . Hacking Detections 1 | . 1 . . Full Trace Events . | . . . . Feedback Events . | . . . . Feedback Blocked . | . . . . Robot Schematics Acquired . | . . . . Robots Built . | . . . . Authchips . | . . . . Time . | . . . . Total Robot Build Rating . | . . . . Part Schematics Acquired . | . . . . Parts Built . | . . . . Authchips . | . . . . Time . | . . . . Total Part Build Rating . | . . . . Parts Repaired . | . . . . Time . | . . . . Parts Recycled . | . . . . Recycled Matter . | . . . . Retrieved Matter . | . . . . Retrieved Components . | . . . . Parts Scanalyzed . | . . . . Part Schematics Acquired . | . . . . Parts Damaged . | . . . . Bothacking | -11 -10 -10 -10 ------------ Run | Yrd Mat Min Sub Used RIF Installer . | . . . . Robots Hacked . | . . . . Non-combat . | . . . . Combat . | . . . . Robot Hacks Applied . | . . . . Relay Couplers Released . | . . . . Fabnet Peak Effective % . | . . . . Robots Rewired . | . . . . Allies Hacked . | . . . . Hacks Repelled . | . . . . Allies | -11 -10 -10 -10 -------- Run | Yrd Mat Min Sub Total Allies . | . . . . Largest Group . | . . . . Highest-Rated Group . | . . . . Highest-Rated Ally . | . . . . Total Orders . | . . . . Ally Attacks . | . . . . Total Damage . | . . . . Kills . | . . . . Allies Corrupted . | . . . . Allies Melted . | . . . . Intel | -11 -10 -10 -10 ------- Run | Yrd Mat Min Sub Robot Analysis Total . | . . . . Derelict Logs Recovered 1 | . . . 1 Drone Launches . | . . . . Drone Recoveries . | . . . . Exploration | -11 -10 -10 -10 ------------- Run | Yrd Mat Min Sub Turns Passed 3829 | 73 420 197 3139 Spaces Moved 2198 | 42 244 115 1797 Core 13 | 3 . . 10 Treads 1954 | 39 244 115 1556 Legs . | . . . . Wheels 231 | . . . 231 Hover . | . . . . Flight . | . . . . Fastest Speed 50 | 50 160 160 95 Average Speed 153 | 152 160 160 151 Slowest Speed 160 | 160 160 160 160 Overloaded Moves . | . . . . Propulsion Burnouts . | . . . . Robots Hopped . | . . . . Cave-ins Triggered . | . . . . Exploration Rate (%) 40 | 3 47 24 88 Regions Visited 3 Branch Regions 2 Pre-discovered Areas 2 | . . . 2 Known Exits Taken . | . . . . Unknown Exits Taken 3 | 1 1 1 . Scrap Searched 2 | . . . 2 Spaces Dug . | . . . . Terrain Destroyed 196 | . . 40 156 Melee . | . . . . Projectile . | . . . . AOE 196 | . . 40 156 Terrain Rammed . | . . . . Walls Destroyed . | . . . . Machines Disabled . | . . . . Actions | -11 -10 -10 -10 --------- Run | Yrd Mat Min Sub Total 2563 | 48 263 122 2130 Wait 208 | . . . 208 Move 2195 | 41 243 114 1797 Hop . | . . . . Pick Up 15 | 1 5 1 8 Fast Attach 14 | 6 1 . 7 Attach 3 | . 1 . 2 Detach . | . . . . Swap 5 | . 2 1 2 Drop 14 | . 3 . 11 Fire 87 | . 6 5 76 Melee . | . . . . Ram . | . . . . Kick . | . . . . Crush 3 | . 2 1 . Escape Stasis . | . . . . Rewire 8 | . . . 8 Trap . | . . . . Miscellaneous 11 | . . . 11 Route ------- -11/Scrapyard -10/Materials (discovered 3 exits: [*Mat x2] / [*Min]) -10/Mines (discovered 2 exits: [*Mat] / *Sub) -10/Subcaves (discovered 1 exit: [*Mat]) History --------- Turn | Location | Event 3 | -11/Scrapyard | Discovered new exit (range 16) 74 | -11/Scrapyard | Entered Materials 130 | -10/Materials | Discovered new exit (range 13) 202 | -10/Materials | Discovered new exit (range 5) 315 | -10/Materials | Build established: Mutant 363 | -10/Materials | Discovered new exit (range 10) 494 | -10/Materials | Entered Mines 501 | -10/Mines | Received a Rocket Launcher from a helpful Derelict 507 | -10/Mines | Assembled infested the area 535 | -10/Mines | Discovered new exit (range 10) 679 | -10/Mines | Discovered new exit (range 8) 691 | -10/Mines | Entered Subcaves 725 | -10/Subcaves | Shifting Twisted Machinery released Sub. Monowheel 739 | -10/Subcaves | Shifting Twisted Machinery released Flamer 803 | -10/Subcaves | A swath of the cavern ceiling suddenly collapsed 949 | -10/Subcaves | Visited Clippyterm 954 | -10/Subcaves | Learned 40 Factory zone layouts 1035 | -10/Subcaves | Shifting Twisted Machinery released Sub. Power Source 1235 | -10/Subcaves | Discovered new exit (range 8) 1418 | -10/Subcaves | Ambushed by Subdwellers from Twisted Machinery 1662 | -10/Subcaves | Learned location of Mines (-10) 2227 | -10/Subcaves | A swath of the cavern ceiling suddenly collapsed 2470 | -10/Subcaves | Learned location of Zion (-6) 2470 | -10/Subcaves | Met a Zionite searching for "candidates" 2946 | -10/Subcaves | Shifting Twisted Machinery released Mak. Power Source 2973 | -10/Subcaves | Disturbed a concealed Subdweller 3041 | -10/Subcaves | Shifting Twisted Machinery released Mak. Flight Unit 3549 | -10/Subcaves | Core integrity fell below 50% 3585 | -10/Subcaves | Lost 5 parts (2n1u2w) 3813 | -10/Subcaves | Core integrity fell below 20% 3830 | -10/Subcaves | Destroyed by S-10 Pest with Light Assault Rifle Last Messages --------------- Barrage Gun destroyed. CP-AUI(R) destroyed. Acquired 39 matter. Acquired Scrap Shield Fragment. Acquired Sub. Monowheel. 37-Q0A(u) deconstructs Twisted Machinery. 37-Q0A(u) cries out in pain. 37-Q0A(u) destroyed. Acquired 15 matter. Acquired Wheel. Acquired Battle Rifle. Acquired 18 matter. S-10 Pest destroyed. Flight Unit fries itself beyond repair. Battle Rifle destroyed. Lgt. Ion Engine fries itself beyond repair. Lgt. Assault Rifle fries itself beyond repair. Flight Unit fries itself beyond repair. S-10 Pest destroyed. Sub. Monowheel destroyed. Map ----- +----------------------------------------------------+ | ?### #### #??? #???????????????????????? | | ?# ##???? #???????????????????????? | | ?# #????? #???????????????????????? | | ?# #??????###???????????????????????? | | ?##% ## ##????????????????????????????????? | | #?##% ### #?????????????????????????????????? | | ##?#####?# ###?????????????????????????????????? | | #???????# #??#???????????????????????????????? | | ######### ### ###?????????????????????????????? | | ## % % #?????????????????????????????? | | #????????????????????????????? | | % ### %#????????????????????????????? | | # ##???? #???????????????????????????? | | ## ##"#???????#???????????????????????????? | | ?# ####???????????????????????????????????? | | ?####### ##??#####?????????????????????????????? | | ## #### #### ##????????????????????????????? | | ## ### ##???????????????????????????? | | # ##???######### ????????????? | | #### ????????????? | | = ???????????## | | % s%% ???????????# | | % *###???????????###??## | | ## s##?????????????# #### | | ###### ####???????????# | | ##????# @ #???????????# | | ##?????# #??????????# | | ##????## #??????????#### | | ###??# ## #####?????????????### | | ##?# ## % ### #??????????????????## | | & % #?# ## #??###??????????????????# | | ####### # ### ##??????????????????????## | | ##??# # ####?# ##???????????????????????# | | #??# ##????# #????????????????????????# # | | ##?## ##???? #????????????????????????# # | | #### #????## ###????????????????????????# | | # % #???####???????????????????????????## # | | ## ##???# ####??????????????????????????### | | ##### #???# ##???????????????????????????? | | ##???## ###?# ##??????????????????????????? | | ##???# # #?# ####???????????????????????? | | #???## #?# ##??????????????????????? | | #?### ### #??????????????????????? | | ### ### ##?????????????????????? | | #? #### #?????????????????????? | | ## ##?### ## #?????????????????????? | | # ##??###### #### #?????????????????????? | | ##??????## #??####?????????????????????? | | ## #???????# #?????##????????????????????? | | ## #??????## #???## #????????????????????? | +----------------------------------------------------+ Best States ------------- Heat Dissipation 25 Energy Generation 15 Energy Capacity 200 Matter Stores 300 Matter Capacity 300 Sight Range 18 Terrain Scan Density 10 Armor Coverage 800 Evasion (%) 41 Recoil Reduction 2 Item Schematics ----------------- None Robot Schematics ------------------ None Fabricated ------------ Nothing Alien Tech Used ----------------- None Achievements -------------- None Challenges ------------ None Game ------ Seed BiomechanicalDefenseScanner Manual? 0 Play Time 00:22:36 Cumulative 60.0 hours Start 2024.11.14 @ 00:10:18 End 2024.11.24 @ 10:38:27 Sessions 3 Manual Loads 0 Difficulty Rogue Special Mode None Game No. 84 Rogue 84 Adventurer 0 Explorer 0 Win Type - Total 2 Types 2/0/0/0/0/0/0/0/0 Lore% 40 Gallery% 45 Achievement% 36 Wizard Run 0 Options --------- Layout 1 ASCII 0 Keyboard 0 Movement Arrows Keybinds 0 Fullscreen 2 Font 24/Smallcaps Map View 25x17 Zoom Use 53% Tactical HUD 0 Map Filters NONE Filters NONE Steam 1 RUN: ebf23406-b8a6-4107-ab12-496bf05dc96e